fUST/lending_fUST_20250915
["ID","MTS","AMOUNT","RATE_DAILY","PERIOD"]
[385626229,1757932234339,-96.49751452,0.00023656,2]
[385626230,1757932234351,-80.69994348,0.00023656,2]
[385626231,1757932234360,-517.32272292,0.000237,14]
[385626232,1757932234372,-3677.32009256,0.000237,14]
[385626233,1757932234382,-626.3506548,0.00023725,2]
[385626234,1757932234392,-666.0,0.00023725,2]
[385626235,1757932234401,-831.98,0.00024,14]
[385626236,1757932234410,-423.22930497,0.00024554,2]
[385626237,1757932234419,-176.0,0.00024635,2]
[385626238,1757932234428,-1200.0,0.00024651,2]
[385626239,1757932234438,-300.0,0.00024652,2]
[385626240,1757932234447,-300.0,0.00024652,2]
[385626241,1757932234456,-300.0,0.00024652,2]
[385626242,1757932234466,-300.0,0.00024652,2]
[385626243,1757932234475,-500.0,0.00024653,2]
[385626244,1757932234484,-500.0,0.00024653,2]
[385626245,1757932234495,-207.89960648,0.00024653,2]
[385626246,1757932234504,-500.0,0.00024653,2]
[385626247,1757932234513,-500.0,0.00024653,2]
[385626248,1757932234523,-500.0,0.00024653,2]
[385626249,1757932234532,-500.0,0.00024653,2]
[385626250,1757932234541,-500.0,0.00024653,2]
[385626251,1757932234550,-500.0,0.00024653,2]
[385626252,1757932234559,-500.0,0.00024653,2]
[385626253,1757932234569,-500.0,0.00024653,2]
[385626254,1757932234578,-500.0,0.00024653,2]
[385626255,1757932234587,-500.0,0.00024653,2]
[385626256,1757932234597,-500.0,0.00024653,2]
[385626257,1757932234606,-500.0,0.00024653,2]
[385626258,1757932234615,-456.95985815,0.00024653,2]
[385626259,1757932234624,-500.0,0.00024653,2]
[385626260,1757932234633,-500.0,0.00024653,2]
[385626261,1757932234642,-500.0,0.00024653,2]
[385626262,1757932234651,-172.29518181,0.00024653,2]
[385626263,1757932234662,-327.70481819,0.00024653,2]
[385626264,1757932234671,-500.0,0.00024653,2]
[385626265,1757932234680,-359.22924337,0.00024654,2]
[385626266,1757932234692,-358.95344586,0.00024654,2]
[385626299,1757932238372,-538.6149541,0.00024654,2]
[385626300,1757932238427,-721.56577951,0.00024654,2]
[385626301,1757932238439,-34531.14721828,0.00024654,2]
[385626302,1757932238448,-1200.0,0.00024654,2]
[385626303,1757932238458,-159.98566223,0.00024656,2]
[385626304,1757932238467,-500.0,0.00024656,2]
[385626305,1757932238476,-500.0,0.00024656,2]
[385626306,1757932238485,-598.32813021,0.00024656,2]
[385626307,1757932238495,-10592.81255375,0.00024657,3]
[385626308,1757932238505,-480.0,0.00024657,3]
[385626309,1757932238515,-282.38,0.00024657,3]
[385626310,1757932238524,-480.0,0.00024657,3]
[385626311,1757932238534,-252.61876092,0.00024657,3]
[385626312,1757932238543,-480.0,0.00024657,3]
[385626313,1757932238554,-480.0,0.00024657,3]
[385626314,1757932238563,-480.0,0.00024657,3]
[385626315,1757932238572,-7162.47,0.00024657,3]
[385626316,1757932238582,-480.0,0.00024657,3]
[385626317,1757932238591,-1708.18,0.00024657,3]
[385626318,1757932238601,-480.0,0.00024657,3]
[385626319,1757932238611,-480.0,0.00024657,3]
[385626320,1757932238621,-480.0,0.00024657,3]
[385626321,1757932238631,-480.0,0.00024657,3]
[385626322,1757932238640,-480.0,0.00024657,3]
[385626323,1757932238650,-256.35753592,0.00024657,3]
[385626324,1757932238659,-383.04,0.00024657,3]
[385626325,1757932238668,-480.0,0.00024657,3]
[385626326,1757932238681,-151.88,0.00024657,3]
[385626327,1757932238690,-480.0,0.00024657,3]
[385626328,1757932238699,-480.0,0.00024657,3]
[385626329,1757932238708,-1257.88,0.00024657,3]
[385626330,1757932238717,-480.0,0.00024657,3]
[385626331,1757932238727,-480.0,0.00024657,3]
[385626332,1757932238737,-480.0,0.00024657,3]
[385626333,1757932238748,-480.0,0.00024657,3]
[385626334,1757932238758,-480.0,0.00024657,3]
[385626335,1757932238768,-480.0,0.00024657,3]
[385626336,1757932238777,-480.0,0.00024657,3]
[385626337,1757932238786,-480.0,0.00024657,3]
[385626338,1757932238796,-480.0,0.00024657,3]
[385626339,1757932238806,-480.0,0.00024657,3]
[385626340,1757932238815,-602.58,0.00024657,3]
[385626341,1757932238824,-480.0,0.00024657,3]
[385626342,1757932238834,-480.0,0.00024657,3]
[385626343,1757932238844,-480.0,0.00024657,3]
[385626344,1757932238853,-480.0,0.00024657,3]
[385626345,1757932238864,-500.0,0.00024673,2]
[385626346,1757932238873,-500.95830453,0.00024673,2]
[385626347,1757932238882,-250.68086532,0.00024673,2]
[385626348,1757932238891,-480.0,0.00024681,3]
[385626349,1757932238900,-480.0,0.00024681,3]
[385626350,1757932238910,-423.75429237,0.00024681,3]
[385626351,1757932238920,-500.0,0.00024681,3]
[385626352,1757932238929,-176.0,0.00024705,2]
[385626353,1757932238939,-176.0,0.00024749,2]
[385626354,1757932238948,-160.0,0.00024751,2]
[385626355,1757932238957,-963.11,0.00024753,10]
[385626356,1757932238967,-1155.73,0.00024763,10]
[385626357,1757932238978,-545.44256811,0.00024773,2]
[385626358,1757932238987,-1386.88,0.00024773,10]
[385626359,1757932238997,-13615.39427488,0.00024773,2]
[385626360,1757932239007,-176.0,0.00024783,2]
[385626361,1757932239016,-545.4425681,0.00024786,2]
[385626362,1757932239027,-176.0,0.00024793,2]
[385626363,1757932239036,-545.4425681,0.00024799,2]
[385626364,1757932239046,-1734.01628668,0.000248,4]
[385626365,1757932239057,-545.4425681,0.00024811,2]
[385626366,1757932239067,-2334.16,0.00024819,2]
[385626367,1757932239076,-411.14166008,0.00024821,2]
[385626368,1757932239085,-176.0,0.00024822,2]
[385626369,1757932239095,-545.4425681,0.00024824,2]
[385626370,1757932239104,-480.0,0.0002483,3]
[385626371,1757932239113,-480.0,0.0002483,3]
[385626372,1757932239123,-480.0,0.0002483,3]
[385626373,1757932239132,-480.0,0.0002483,3]
[385626374,1757932239141,-480.0,0.0002483,3]
[385626375,1757932239151,-489.74970856,0.0002483,3]
[385626376,1757932239161,-486.69533552,0.0002483,3]
[385626377,1757932239170,-292722.1688969,0.00024831,2]
[385626378,1757932239179,-500.0,0.00024873,2]
[385626379,1757932239189,-500.0,0.00024873,2]
[385626380,1757932239198,-500.0,0.00024873,2]
[385626381,1757932239207,-500.0,0.00024873,2]
[385626382,1757932239216,-500.0,0.00024873,2]
[385626383,1757932239225,-500.0,0.00024873,2]
[385626384,1757932239235,-500.0,0.00024873,2]
[385626385,1757932239244,-429.31065255,0.00024873,2]
[385626386,1757932239254,-503.06404545,0.00024873,2]
[385626387,1757932239263,-500.0,0.00024873,2]
[385626388,1757932239272,-500.0,0.00024873,2]
[385626389,1757932239281,-500.0,0.00024873,2]
[385626390,1757932239291,-500.0,0.00024873,2]
[385626391,1757932239300,-16000.0,0.00024885,2]
[385626392,1757932239310,-719.49790514,0.0002489,2]
[385626393,1757932239319,-13513.41,0.000249,7]
[385626394,1757932239328,-961.51,0.000249,7]
[385626395,1757932239337,-10592.81255375,0.000249,7]
[385626396,1757932239346,-133521.275422,0.000249,2]
[385626397,1757932239355,-2597.97371783,0.000249,30]
[385626398,1757932239364,-7027.43554855,0.00024921,2]
[385626399,1757932239373,-176.0,0.00024924,2]
[385626400,1757932239382,-151.0,0.00024931,3]
[385626401,1757932239391,-480.0,0.00024931,3]
[385626402,1757932239401,-480.0,0.00024931,3]
[385626403,1757932239410,-480.0,0.00024931,3]
[385626404,1757932239419,-480.0,0.00024931,3]
[385626405,1757932239429,-7162.47,0.00024931,3]
[385626406,1757932239438,-480.0,0.00024931,3]
[385626407,1757932239448,-1708.18,0.00024931,3]
[385626408,1757932239457,-480.0,0.00024931,3]
[385626409,1757932239466,-480.0,0.00024931,3]
[385626410,1757932239475,-480.0,0.00024931,3]
[385626411,1757932239484,-540.27357921,0.00024931,3]
[385626412,1757932239493,-480.0,0.00024931,3]
[385626413,1757932239505,-151.0,0.00024931,3]
[385626414,1757932239515,-500.0,0.00024931,2]
[385626415,1757932239524,-157.17790768,0.00024931,2]
[385626416,1757932239533,-151.0,0.00024931,3]
[385626417,1757932239542,-151.0,0.00024931,3]
[385626418,1757932239551,-480.0,0.00024931,3]
[385626419,1757932239561,-480.0,0.00024931,3]
[385626420,1757932239571,-1257.88,0.00024931,3]
[385626421,1757932239579,-480.0,0.00024931,3]
[385626422,1757932239588,-480.0,0.00024931,3]
[385626423,1757932239598,-480.0,0.00024931,3]
[385626424,1757932239607,-480.0,0.00024931,3]
[385626425,1757932239617,-480.0,0.00024931,3]
[385626426,1757932239626,-500.0,0.00024931,3]
[385626427,1757932239636,-151.0,0.00024931,3]
[385626428,1757932239645,-151.0,0.00024931,3]
[385626429,1757932239655,-480.0,0.00024931,3]
[385626430,1757932239664,-480.0,0.00024931,3]
[385626431,1757932239674,-480.0,0.00024931,3]
[385626432,1757932239683,-480.0,0.00024931,3]
[385626433,1757932239693,-480.0,0.00024931,3]
[385626434,1757932239702,-480.0,0.00024955,3]
[385626435,1757932239712,-176.0,0.0002497,2]
[385626436,1757932239726,-500.0,0.00024973,2]
[385626437,1757932239735,-500.0,0.00024973,2]
[385626438,1757932239746,-336.27895368,0.00024973,2]
[385626439,1757932239755,-500.0,0.00024973,2]
[385626440,1757932239765,-500.0,0.00024973,2]
[385626441,1757932239774,-500.0,0.00024973,2]
[385626442,1757932239783,-500.0,0.00024973,2]
[385626443,1757932239793,-2993.66281309,0.00025,2]
[385626444,1757932239802,-176.0,0.00025017,2]
[385626445,1757932239811,-277.0,0.000251,2]
[385626446,1757932239820,-480.0,0.00025104,3]
[385626447,1757932239829,-480.0,0.00025104,3]
[385626448,1757932239838,-480.0,0.00025104,3]
[385626449,1757932239848,-480.0,0.00025104,3]
[385626451,1757932239858,-500.0,0.00025188,9]
[385626453,1757932239868,-155.0,0.00025204,2]
[385626454,1757932239878,-151.0,0.00025205,3]
[385626455,1757932239887,-500.0,0.00025205,2]
[385626456,1757932239897,-500.0,0.00025205,3]
[385626457,1757932239907,-480.0,0.00025205,3]
[385626458,1757932239918,-480.0,0.00025205,3]
[385626459,1757932239928,-480.0,0.00025205,3]
[385626460,1757932239937,-480.0,0.00025205,3]
[385626461,1757932239947,-7162.47,0.00025205,3]
[385626462,1757932239956,-480.0,0.00025205,3]
[385626463,1757932239965,-1708.18,0.00025205,3]
[385626464,1757932239977,-480.0,0.00025205,3]
[385626465,1757932239988,-480.0,0.00025205,3]
[385626466,1757932240001,-480.0,0.00025205,3]
[385626467,1757932240011,-480.0,0.00025205,3]
[385626468,1757932240022,-480.0,0.00025205,3]
[385626470,1757932240031,-220.49723217,0.00025205,3]
[385626472,1757932240040,-1257.88,0.00025205,3]
[385626475,1757932240049,-480.0,0.00025205,3]
[385626477,1757932240060,-480.0,0.00025205,3]
[385626478,1757932240071,-480.0,0.00025205,3]
[385626480,1757932240080,-480.0,0.00025205,3]
[385626482,1757932240090,-480.0,0.00025205,3]
[385626484,1757932240099,-152.05,0.00025205,3]
[385626485,1757932240109,-480.0,0.00025205,3]
[385626486,1757932240119,-480.0,0.00025205,3]
[385626488,1757932240129,-480.0,0.00025205,3]
[385626490,1757932240138,-480.0,0.00025205,3]
[385626492,1757932240148,-1000.0,0.00025221,2]
[385626494,1757932240157,-480.0,0.00025229,3]
[385626496,1757932240166,-471.89772316,0.00025251,2]
[385626498,1757932240175,-344.12663751,0.00025253,2]
[385626500,1757932240185,-423.22930497,0.00025327,2]
[385626502,1757932240194,-480.0,0.00025378,3]
[385626504,1757932240203,-480.0,0.00025378,3]
[385626506,1757932240212,-480.0,0.00025378,3]
[385626508,1757932240222,-480.0,0.00025378,3]
[385626510,1757932240231,-160.0,0.00025394,2]
[385626512,1757932240241,-1000.0,0.00025421,2]
[385626514,1757932240253,-1000.0,0.00025421,2]
[385626516,1757932240262,-501.22314137,0.00025421,2]
[385626518,1757932240272,-1000.0,0.00025421,2]
[385626520,1757932240281,-506.61713057,0.00025421,2]
[385626522,1757932240290,-1000.0,0.00025421,2]
[385626524,1757932240300,-1000.0,0.00025421,2]
[385626533,1757932240405,-1000.0,0.00025421,2]
[385626535,1757932240415,-1000.0,0.00025421,2]
[385626537,1757932240425,-1000.0,0.00025421,2]
[385626539,1757932240435,-900.0,0.00025469,3]
[385626541,1757932240445,-500.0,0.00025473,2]
[385626542,1757932240455,-501.12335706,0.00025473,2]
[385626543,1757932240469,-177.78883637,0.00025479,3]
[385626544,1757932240480,-500.0,0.00025479,2]
[385626545,1757932240495,-500.0,0.00025479,3]
[385626546,1757932240506,-623.28909831,0.00025479,3]
[385626548,1757932240516,-480.0,0.00025479,3]
[385626550,1757932240525,-480.0,0.00025479,3]
[385626552,1757932240534,-368.09619398,0.00025479,3]
[385626553,1757932240543,-7162.47,0.00025479,3]
[385626555,1757932240553,-480.0,0.00025479,3]
[385626558,1757932240562,-1708.18,0.00025479,3]
[385626561,1757932240572,-480.0,0.00025479,3]
[385626563,1757932240581,-480.0,0.00025479,3]
[385626565,1757932240591,-525.59,0.00025479,3]
[385626567,1757932240600,-237.7,0.00025479,3]
[385626569,1757932240609,-480.0,0.00025479,3]
[385626571,1757932240618,-1257.88,0.00025479,3]
[385626573,1757932240627,-480.0,0.00025479,3]
[385626575,1757932240636,-480.0,0.00025479,3]
[385626577,1757932240645,-480.0,0.00025479,3]
[385626579,1757932240654,-480.0,0.00025479,3]
[385626581,1757932240663,-480.0,0.00025479,3]
[385626583,1757932240673,-480.0,0.00025479,3]
[385626585,1757932240682,-480.0,0.00025479,3]
[385626587,1757932240691,-480.0,0.00025479,3]
[385626589,1757932240700,-480.0,0.00025479,3]
[385626591,1757932240710,-178.0,0.00025488,2]
[385626593,1757932240718,-183.69,0.00025503,3]
[385626594,1757932240728,-176.0,0.00025509,2]
[385626595,1757932240738,-357.2568059,0.00025521,2]
[385626596,1757932240748,-500.95718781,0.00025521,2]
[385626597,1757932240757,-1000.0,0.00025521,2]
[385626598,1757932240767,-1000.0,0.00025521,2]
[385626599,1757932240776,-480.0,0.00025652,3]
[385626600,1757932240785,-480.0,0.00025652,3]
[385626601,1757932240794,-480.0,0.00025652,3]
[385626602,1757932240804,-480.0,0.00025652,3]
[385626603,1757932240813,-176.0,0.00025706,2]
[385626604,1757932240823,-500.0,0.00025753,2]
[385626605,1757932240832,-500.0,0.00025753,3]
[385626606,1757932240842,-480.0,0.00025753,3]
[385626607,1757932240851,-480.0,0.00025753,3]
[385626608,1757932240860,-7162.47,0.00025753,3]
[385626609,1757932240870,-480.0,0.00025753,3]
[385626610,1757932240881,-1708.18,0.00025753,3]
[385626611,1757932240890,-480.0,0.00025753,3]
[385626612,1757932240904,-480.0,0.00025753,3]
[385626613,1757932240913,-480.0,0.00025753,3]
[385626614,1757932240923,-1257.88,0.00025753,3]
[385626615,1757932240932,-480.0,0.00025753,3]
[385626616,1757932240941,-541.96,0.00025753,3]
[385626618,1757932240951,-461.04,0.00025753,3]
[385626619,1757932240960,-480.0,0.00025753,3]
[385626621,1757932240970,-480.0,0.00025753,3]
[385626623,1757932240982,-480.0,0.00025753,3]
[385626624,1757932240992,-480.0,0.00025753,3]
[385626626,1757932241002,-480.0,0.00025753,3]
[385626627,1757932241012,-480.0,0.00025753,3]
[385626628,1757932241023,-1500.0,0.00025768,2]
[385626629,1757932241032,-1153.08382945,0.0002578,2]
[385626630,1757932241041,-176.0,0.000258,2]
[385626631,1757932241052,-176.0,0.00025819,2]
[385626632,1757932241062,-176.0,0.00025872,2]
[385626633,1757932241072,-410.0,0.00025903,2]
[385626634,1757932241081,-500.0,0.0002591,2]
[385626635,1757932241091,-500.0,0.0002591,2]
[385626636,1757932241101,-500.0,0.0002591,2]
[385626637,1757932241110,-500.0,0.0002591,2]
[385626638,1757932241120,-500.0,0.0002591,2]
[385626639,1757932241129,-181.21081558,0.0002591,2]
[385626640,1757932241139,-500.0,0.0002591,2]
[385626641,1757932241148,-500.0,0.0002591,2]
[385626642,1757932241158,-480.0,0.00025926,3]
[385626643,1757932241167,-480.0,0.00025926,3]
[385626644,1757932241177,-480.0,0.00025926,3]
[385626645,1757932241187,-480.0,0.00025926,3]
[385626646,1757932241197,-260.0,0.00025942,2]
[385626647,1757932241207,-1500.0,0.00025968,2]
[385626648,1757932241216,-809.15525644,0.00025968,2]
[385626649,1757932241225,-1647.42701485,0.00025968,2]
[385626650,1757932241235,-1500.0,0.00025968,2]
[385626651,1757932241244,-1500.0,0.00025968,2]
[385626652,1757932241254,-1500.0,0.00025968,2]
[385626653,1757932241264,-1500.0,0.00025968,2]
[385626654,1757932241273,-1500.0,0.00025968,2]
[385626655,1757932241283,-230.35488053,0.00025973,2]
[385626656,1757932241292,-500.0,0.00025973,2]
[385626657,1757932241301,-500.0,0.00025973,2]
[385626658,1757932241310,-500.0,0.00025973,2]
[385626659,1757932241320,-160.20451492,0.00025973,2]
[385626660,1757932241329,-500.0,0.00025973,2]
[385626661,1757932241338,-203.1771519,0.00025973,2]
[385626662,1757932241348,-38987.98743302,0.00026,10]
[385626663,1757932241357,-161.0,0.00026,5]
[385626664,1757932241367,-531.33695587,0.00026,10]
[385626665,1757932241377,-160.0,0.00026,10]
[385626666,1757932241386,-385.68089002,0.00026,10]
[385626667,1757932241395,-1000.0,0.00026021,2]
[385626668,1757932241404,-500.0,0.00026027,2]
[385626669,1757932241413,-500.0,0.00026027,3]
[385626670,1757932241423,-480.0,0.00026027,3]
[385626671,1757932241432,-480.0,0.00026027,3]
[385626672,1757932241441,-7162.47,0.00026027,3]
[385626673,1757932241451,-480.0,0.00026027,3]
[385626674,1757932241461,-1708.18,0.00026027,3]
[385626675,1757932241470,-480.0,0.00026027,3]
[385626676,1757932241480,-480.0,0.00026027,3]
[385626677,1757932241489,-480.0,0.00026027,3]
[385626678,1757932241499,-1257.88,0.00026027,3]
[385626679,1757932241509,-214.61957159,0.00026027,3]
[385626680,1757932241520,-480.0,0.00026027,3]
[385626681,1757932241529,-480.0,0.00026027,3]
[385626682,1757932241538,-480.0,0.00026027,3]
[385626683,1757932241548,-480.0,0.00026027,3]
[385626684,1757932241557,-430.53,0.00026027,3]
[385626685,1757932241567,-480.0,0.00026027,3]
[385626686,1757932241576,-1500.0,0.00026068,2]
[385626687,1757932241585,-500.0,0.00026073,2]
[385626688,1757932241595,-500.0,0.00026073,2]
[385626689,1757932241604,-500.0,0.00026073,2]
[385626690,1757932241613,-500.0,0.00026073,2]
[385626691,1757932241622,-500.0,0.00026073,2]
[385626692,1757932241631,-500.0,0.00026073,2]
[385626693,1757932241640,-150.0,0.00026073,2]
[385626694,1757932241649,-423.22930497,0.00026101,2]
[385626695,1757932241659,-178.0,0.00026151,7]
[385626696,1757932241669,-480.0,0.000262,3]
[385626697,1757932241678,-480.0,0.000262,3]
[385626698,1757932241687,-204.6269948,0.000262,3]
[385626699,1757932241699,-480.0,0.000262,3]
[385626700,1757932241710,-176.0,0.00026236,2]
[385626701,1757932241722,-176.0,0.00026243,2]
[385626702,1757932241734,-384.48816426,0.00026301,2]
[385626703,1757932241745,-500.0,0.00026301,3]
[385626704,1757932241758,-480.0,0.00026301,3]
[385626705,1757932241769,-319.84,0.00026301,3]
[385626706,1757932241779,-7162.47,0.00026301,3]
[385626707,1757932241790,-480.0,0.00026301,3]
[385626708,1757932241802,-1708.18,0.00026301,3]
[385626709,1757932241812,-480.0,0.00026301,3]
[385626710,1757932241823,-593.08,0.00026301,3]
[385626711,1757932241834,-480.0,0.00026301,3]
[385626712,1757932241846,-1257.88,0.00026301,3]
[385626713,1757932241858,-480.0,0.00026301,3]
[385626714,1757932241869,-480.0,0.00026301,3]
[385626715,1757932241881,-480.0,0.00026301,3]
[385626716,1757932241892,-480.0,0.00026301,3]
[385626717,1757932241902,-480.0,0.00026301,3]
[385626718,1757932241913,-2000.0,0.00026316,2]
[385626719,1757932241924,-176.0,0.00026369,7]
[385626720,1757932241935,-176.0,0.00026374,2]
[385626721,1757932241947,-2000.0,0.000264,2]
[385626722,1757932241957,-279.2,0.000264,2]
[385626723,1757932241968,-489.0,0.000264,2]
[385626724,1757932241981,-1000.0,0.00026458,2]
[385626725,1757932241992,-1000.0,0.00026458,2]
[385626726,1757932242004,-1000.0,0.00026458,2]
[385626727,1757932242015,-1000.0,0.00026458,2]
[385626728,1757932242026,-1000.0,0.00026458,2]
[385626729,1757932242036,-1000.0,0.00026458,2]
[385626730,1757932242048,-257.52389537,0.00026473,2]
[385626731,1757932242059,-500.0,0.00026473,2]
[385626732,1757932242070,-500.0,0.00026473,2]
[385626733,1757932242080,-500.0,0.00026473,2]
[385626734,1757932242090,-480.0,0.00026474,3]
[385626735,1757932242101,-480.0,0.00026474,3]
[385626736,1757932242112,-247.94955787,0.00026474,3]
[385626737,1757932242122,-1070.372727,0.0002648,5]
[385626738,1757932242132,-360.0,0.0002649,2]
[385626739,1757932242142,-1000.0,0.000265,5]
[385626740,1757932242152,-150.0,0.000265,10]
[385626741,1757932242163,-500.0,0.00026516,2]
[385626742,1757932242174,-1010.61830943,0.00026516,2]
[385626743,1757932242184,-2000.0,0.00026516,2]
[385626744,1757932242195,-2000.0,0.00026516,2]
[385626745,1757932242206,-2000.0,0.00026516,2]
[385626746,1757932242217,-2000.0,0.00026516,2]
[385626747,1757932242228,-1000.0,0.00026521,2]
[385626748,1757932242240,-1000.0,0.00026521,2]
[385626749,1757932242250,-1143.24831229,0.00026521,2]
[385626750,1757932242261,-1500.0,0.00026568,2]
[385626751,1757932242272,-150.0,0.00026573,2]
[385626752,1757932242283,-500.0,0.00026575,3]
[385626753,1757932242295,-480.0,0.00026575,3]
[385626754,1757932242307,-7162.47,0.00026575,3]
[385626755,1757932242319,-480.0,0.00026575,3]
[385626756,1757932242331,-1708.18,0.00026575,3]
[385626757,1757932242342,-480.0,0.00026575,3]
[385626758,1757932242352,-480.0,0.00026575,3]
[385626759,1757932242362,-1257.88,0.00026575,3]
[385626760,1757932242372,-480.0,0.00026575,3]
[385626761,1757932242382,-591.63,0.00026575,3]
[385626762,1757932242392,-480.0,0.00026575,3]
[385626763,1757932242403,-480.0,0.00026575,3]
[385626764,1757932242414,-480.0,0.00026575,3]
[385626765,1757932242424,-1513.42680806,0.00026616,2]
[385626766,1757932242436,-1003.6027247,0.00026621,2]
[385626767,1757932242447,-1000.0,0.00026621,2]
[385626768,1757932242458,-1001.99525578,0.00026621,2]
[385626769,1757932242469,-500.99050421,0.00026621,2]
[385626770,1757932242478,-1000.894167,0.00026621,2]
[385626771,1757932242488,-1001.2309403,0.00026621,2]
[385626772,1757932242497,-300.0,0.00026621,2]
[385626773,1757932242508,-420.0,0.00026716,2]
[385626774,1757932242519,-420.0,0.00026716,2]
[385626775,1757932242529,-1680.0,0.00026718,2]
[385626776,1757932242540,-176.0,0.00026736,2]
[385626777,1757932242551,-480.0,0.00026748,3]
[385626778,1757932242561,-480.0,0.00026748,3]
[385626779,1757932242570,-1680.0,0.00026836,2]
[385626780,1757932242581,-500.0,0.00026849,3]
[385626781,1757932242591,-480.0,0.00026849,3]
[385626782,1757932242601,-7162.47,0.00026849,3]
[385626783,1757932242611,-480.0,0.00026849,3]
[385626784,1757932242621,-1708.18,0.00026849,3]
[385626785,1757932242631,-480.0,0.00026849,3]
[385626786,1757932242642,-228.37,0.00026849,3]
[385626787,1757932242652,-1257.88,0.00026849,3]
[385626788,1757932242662,-480.0,0.00026849,3]
[385626789,1757932242672,-480.0,0.00026849,3]
[385626790,1757932242682,-576.02,0.00026849,3]
[385626791,1757932242692,-480.0,0.00026849,3]
[385626792,1757932242702,-764.1591554,0.00026864,2]
[385626793,1757932242712,-423.22930497,0.00026874,2]
[385626794,1757932242723,-160.0,0.00026915,3]
[385626795,1757932242733,-176.0,0.00026933,2]
[385626796,1757932242743,-1500.0,0.00026951,2]
[385626798,1757932242754,-176.0,0.00026968,2]
[385626799,1757932242764,-500.0,0.00026973,2]
[385626800,1757932242775,-160.76537437,0.00026973,2]
[385626801,1757932242786,-150.0,0.00026973,2]
[385626802,1757932242796,-176.0,0.00026977,2]
[385626803,1757932242807,-39295.1394354,0.00027,2]
[385626804,1757932242817,-1500.0,0.00027006,2]
[385626805,1757932242828,-1500.0,0.00027006,2]
[385626806,1757932242840,-1500.0,0.00027006,2]
[385626807,1757932242850,-1500.0,0.00027006,2]
[385626809,1757932242860,-1000.0,0.00027006,2]
[385626810,1757932242871,-157.07382482,0.00027006,2]
[385626811,1757932242881,-501.53273402,0.00027021,2]
[385626812,1757932242891,-501.28193224,0.00027021,2]
[385626813,1757932242901,-480.0,0.00027022,3]
[385626814,1757932242911,-480.0,0.00027022,3]
[385626815,1757932242922,-460.0,0.00027038,2]
[385626816,1757932242932,-176.0,0.00027043,2]
[385626817,1757932242942,-1679.2507149,0.00027064,2]
[385626818,1757932242952,-1312.60051514,0.00027064,2]
[385626819,1757932242962,-2500.0,0.00027064,2]
[385626820,1757932242975,-2500.0,0.00027064,2]
[385626821,1757932242995,-503.86427985,0.00027068,2]
[385626822,1757932243007,-868.1945531,0.00027068,2]
[385626823,1757932243017,-389.41044593,0.00027116,2]
[385626824,1757932243028,-500.0,0.00027123,3]
[385626825,1757932243038,-480.0,0.00027123,3]
[385626826,1757932243048,-7162.47,0.00027123,3]
[385626827,1757932243059,-480.0,0.00027123,3]
[385626828,1757932243069,-1708.18,0.00027123,3]
[385626829,1757932243080,-480.0,0.00027123,3]
[385626830,1757932243091,-1257.88,0.00027123,3]
[385626831,1757932243101,-262.95,0.00027123,3]